fUST/lending_fUST_20250121
["ID","MTS","AMOUNT","RATE_DAILY","PERIOD"]
[349831924,1737455440413,-500.0,0.00022723,3]
[349831926,1737455440426,-500.0,0.00022723,3]
[349831928,1737455440436,-166.89,0.0002274,2]
[349831930,1737455440446,-166.89,0.0002274,2]
[349831932,1737455440455,-166.89,0.0002274,2]
[349831934,1737455440466,-166.89,0.0002274,2]
[349831936,1737455440475,-22984.60628929,0.0002275,2]
[349831939,1737455440492,-410.64,0.0002275,2]
[349831941,1737455440505,-17266.85548244,0.0002275,2]
[349831943,1737455440515,-1233.84,0.00022757,3]
[349831945,1737455440526,-528.81766839,0.00022757,3]
[349831947,1737455440535,-539.4,0.00022757,3]
[349831949,1737455440544,-500.0,0.00022757,3]
[349831951,1737455440553,-500.0,0.00022757,3]
[349831953,1737455440562,-166.89,0.00022779,2]
[349831955,1737455440571,-166.89,0.00022779,2]
[349831957,1737455440581,-500.0,0.00022786,3]
[349831959,1737455440590,-603.6,0.00022786,3]
[349831961,1737455440601,-12159.83606121,0.00022789,2]
[349831963,1737455440611,-1259.29,0.00022849,3]
[349831965,1737455440620,-1024.96,0.00022849,3]
[349831967,1737455440630,-658.46,0.00022849,3]
[349831969,1737455440640,-500.0,0.00022849,3]
[349831971,1737455440649,-500.0,0.00022849,3]
[349831973,1737455440658,-924.93,0.00022849,3]
[349831975,1737455440668,-500.0,0.00022849,3]
[349831977,1737455440677,-1119.98,0.00022849,3]
[349831979,1737455440687,-2000.69,0.00022849,3]
[349831981,1737455440696,-520.14,0.00022849,3]
[349831983,1737455440705,-166.89,0.0002285,2]
[349831985,1737455440715,-500.0,0.0002286,3]
[349831987,1737455440725,-500.0,0.0002286,3]
[349831989,1737455440735,-500.0,0.0002286,3]
[349831991,1737455440744,-1403.8,0.0002286,3]
[349831993,1737455440754,-1254.17,0.0002286,3]
[349831995,1737455440763,-500.0,0.0002286,3]
[349831997,1737455440772,-500.0,0.0002286,3]
[349831999,1737455440782,-500.0,0.0002286,3]
[349832001,1737455440791,-500.0,0.0002286,3]
[349832003,1737455440800,-10030.05954602,0.0002289,5]
[349832005,1737455440810,-1233.84,0.00022894,3]
[349832007,1737455440819,-539.4,0.00022894,3]
[349832009,1737455440830,-500.0,0.00022894,3]
[349832011,1737455440839,-500.0,0.00022894,3]
[349832013,1737455440848,-649.40402712,0.000229,3]
[349832015,1737455440857,-500.0,0.00022922,2]
[349832017,1737455440866,-500.0,0.00022922,3]
[349832019,1737455440876,-500.0,0.00022922,3]
[349832021,1737455440886,-620.24,0.00022922,3]
[349832023,1737455440895,-500.0,0.00022922,3]
[349832025,1737455440904,-259.91751507,0.00022922,3]
[349832027,1737455440913,-500.0,0.00022922,3]
[349832029,1737455440923,-500.0,0.00022922,3]
[349832031,1737455440933,-500.0,0.00022922,3]
[349832033,1737455440942,-500.0,0.00022922,3]
[349832035,1737455440951,-528.64664937,0.00022922,3]
[349832037,1737455440960,-500.0,0.00022922,3]
[349832039,1737455440970,-500.0,0.00022922,3]
[349832041,1737455440979,-500.0,0.00022922,3]
[349832043,1737455440989,-500.0,0.00022922,3]
[349832045,1737455440998,-500.0,0.00022922,3]
[349832047,1737455441007,-500.0,0.00022922,3]
[349832049,1737455441017,-500.0,0.00022922,3]
[349832051,1737455441026,-500.0,0.00022922,3]
[349832053,1737455441036,-500.0,0.00022922,3]
[349832055,1737455441045,-506.97391184,0.00022922,3]
[349832058,1737455441054,-500.0,0.00022922,3]
[349832059,1737455441064,-500.0,0.00022922,3]
[349832061,1737455441073,-500.0,0.00022922,3]
[349832063,1737455441082,-500.0,0.00022922,3]
[349832065,1737455441091,-500.0,0.00022922,3]
[349832068,1737455441100,-503.08021678,0.00022922,3]
[349832070,1737455441109,-500.0,0.00022922,3]
[349832072,1737455441119,-500.0,0.00022922,3]
[349832074,1737455441128,-500.0,0.00022922,3]
[349832076,1737455441139,-500.0,0.00022922,3]
[349832078,1737455441148,-292.47500306,0.00022922,3]
[349832080,1737455441157,-500.0,0.00022922,3]
[349832082,1737455441166,-500.0,0.00022922,3]
[349832084,1737455441175,-500.0,0.00022922,3]
[349832086,1737455441183,-184.35239706,0.00022922,3]
[349832088,1737455441192,-500.0,0.00022922,3]
[349832090,1737455441201,-169.76609826,0.00022922,3]
[349832092,1737455441210,-500.0,0.00022922,3]
[349832094,1737455441219,-500.0,0.00022922,3]
[349832096,1737455441229,-500.0,0.00022922,3]
[349832098,1737455441238,-500.0,0.00022922,3]
[349832100,1737455441248,-604.74,0.00022922,3]
[349832102,1737455441258,-500.0,0.00022922,3]
[349832104,1737455441267,-500.0,0.00022922,3]
[349832106,1737455441276,-500.0,0.00022922,3]
[349832108,1737455441285,-500.0,0.00022922,2]
[349832110,1737455441294,-500.0,0.00022922,3]
[349832112,1737455441303,-500.0,0.00022922,3]
[349832114,1737455441312,-500.0,0.00022922,3]
[349832116,1737455441322,-500.0,0.00022922,3]
[349832117,1737455441331,-2731.85,0.00022922,3]
[349832120,1737455441340,-500.0,0.00022922,3]
[349832122,1737455441350,-500.0,0.00022922,3]
[349832123,1737455441359,-500.0,0.00022922,3]
[349832126,1737455441368,-500.0,0.00022922,3]
[349832127,1737455441378,-500.0,0.00022922,3]
[349832129,1737455441388,-500.0,0.00022922,3]
[349832131,1737455441398,-500.0,0.00022922,3]
[349832133,1737455441407,-500.0,0.00022922,3]
[349832135,1737455441417,-500.0,0.00022922,3]
[349832137,1737455441427,-500.0,0.00022922,3]
[349832139,1737455441439,-500.0,0.00022922,3]
[349832141,1737455441448,-981.7,0.00022922,3]
[349832143,1737455441459,-1531.42,0.00022922,3]
[349832145,1737455441469,-500.0,0.00022922,3]
[349832147,1737455441478,-500.0,0.00022922,3]
[349832149,1737455441488,-839.96,0.00022922,3]
[349832152,1737455441497,-500.0,0.00022922,3]
[349832154,1737455441509,-500.0,0.00022922,3]
[349832155,1737455441518,-575.59,0.00022922,3]
[349832158,1737455441528,-500.0,0.00022922,3]
[349832159,1737455441538,-500.0,0.00022922,3]
[349832162,1737455441547,-381.73234345,0.00022922,3]
[349832337,1737455443003,-118.26765655,0.00022922,3]
[349832339,1737455443013,-500.0,0.00022922,3]
[349832341,1737455443023,-500.0,0.00022922,3]
[349832343,1737455443032,-396.90695737,0.00022922,3]
[349832345,1737455443041,-535.55,0.00022922,3]
[349832347,1737455443051,-500.0,0.00022922,3]
[349832349,1737455443061,-500.0,0.00022922,3]
[349832351,1737455443071,-500.0,0.00022922,3]
[349832353,1737455443081,-500.0,0.00022922,3]
[349832355,1737455443090,-5091.06,0.00022922,3]
[349832357,1737455443100,-500.0,0.00022922,3]
[349832359,1737455443110,-500.0,0.00022922,3]
[349832361,1737455443119,-500.0,0.00022922,3]
[349832363,1737455443129,-8517.2,0.00022922,3]
[349832365,1737455443140,-500.0,0.00022922,2]
[349832367,1737455443150,-500.0,0.00022922,3]
[349832370,1737455443161,-500.0,0.00022922,3]
[349832371,1737455443170,-500.0,0.00022922,3]
[349832374,1737455443181,-518.5,0.00022922,3]
[349832375,1737455443190,-500.0,0.00022922,3]
[349832377,1737455443200,-500.0,0.00022922,3]
[349832380,1737455443210,-500.0,0.00022922,3]
[349832382,1737455443220,-500.23558096,0.00022922,3]
[349832638,1737455445899,-818.08,0.00022575,3]
[349832641,1737455445909,-818.08,0.00022712,3]
[349832643,1737455445918,-818.08,0.00022849,3]
[349832645,1737455445927,-15.56441904,0.00022922,3]
[349832646,1737455445937,-500.0,0.00022922,3]
[349832649,1737455445947,-500.0,0.00022922,3]
[349832651,1737455445957,-500.0,0.00022922,3]
[349832653,1737455445967,-500.0,0.00022922,3]
[349832654,1737455445976,-500.0,0.00022922,3]
[349832656,1737455445986,-500.0,0.00022922,3]
[349832658,1737455445995,-500.0,0.00022922,3]
[349832660,1737455446006,-500.0,0.00022922,3]
[349832662,1737455446016,-500.0,0.00022922,3]
[349832664,1737455446025,-1054.34,0.00022922,3]
[349832666,1737455446035,-500.0,0.00022922,3]
[349832669,1737455446045,-500.0,0.00022922,3]
[349832672,1737455446054,-500.0,0.00022922,3]
[349832675,1737455446064,-500.0,0.00022922,3]
[349832677,1737455446077,-500.0,0.00022922,3]
[349832679,1737455446086,-14049.1,0.00022922,3]
[349832681,1737455446096,-500.0,0.00022922,3]
[349832683,1737455446105,-598.29,0.00022922,3]
[349832685,1737455446114,-500.0,0.00022923,3]
[349832686,1737455446123,-500.0,0.00022923,3]
[349832689,1737455446133,-500.0,0.00022923,3]
[349832691,1737455446142,-649.7,0.00022923,3]
[349832693,1737455446151,-695.32,0.00022923,3]
[349832695,1737455446160,-500.0,0.00022923,3]
[349832697,1737455446169,-500.0,0.00022923,3]
[349832699,1737455446179,-500.0,0.00022923,3]
[349832701,1737455446188,-500.0,0.00022923,3]
[349832703,1737455446197,-500.0,0.00022923,3]
[349832705,1737455446207,-500.0,0.00022923,3]
[349832707,1737455446217,-500.0,0.00022923,3]
[349832709,1737455446226,-603.6,0.00022923,3]
[349832711,1737455446235,-501.6637143,0.00022965,3]
[349832713,1737455446245,-500.0,0.00022965,3]
[349832715,1737455446255,-500.0,0.00022965,3]
[349832717,1737455446264,-649.40402694,0.00022969,3]
[349832719,1737455446273,-1259.29,0.00022986,3]
[349832721,1737455446283,-1024.96,0.00022986,3]
[349832723,1737455446292,-658.46,0.00022986,3]
[349832725,1737455446302,-500.0,0.00022986,3]
[349832727,1737455446311,-500.0,0.00022986,3]
[349832729,1737455446320,-924.93,0.00022986,3]
[349832731,1737455446330,-500.0,0.00022986,3]
[349832733,1737455446339,-1119.98,0.00022986,3]
[349832735,1737455446348,-2000.69,0.00022986,3]
[349832737,1737455446358,-520.14,0.00022986,3]
[349832739,1737455446368,-818.08,0.00022986,3]
[349832741,1737455446377,-500.0,0.00022997,3]
[349832743,1737455446387,-500.0,0.00022997,3]
[349832745,1737455446396,-500.0,0.00022997,3]
[349832747,1737455446407,-1403.8,0.00022997,3]
[349832749,1737455446417,-1254.17,0.00022997,3]
[349832751,1737455446429,-500.0,0.00022997,3]
[349832753,1737455446442,-500.0,0.00022997,3]
[349832755,1737455446453,-542.33850755,0.00022997,3]
[349832757,1737455446463,-500.0,0.00022997,3]
[349832759,1737455446472,-153.0,0.00023,2]
[349832761,1737455446481,-7438.69753278,0.00023,3]
[349832763,1737455446491,-156.0,0.00023,2]
[349832765,1737455446502,-1233.84,0.00023031,3]
[349832767,1737455446512,-539.4,0.00023031,3]
[349832769,1737455446522,-187.62876494,0.00023031,3]
[349832770,1737455446531,-500.0,0.00023031,3]
[349832772,1737455446541,-649.40402694,0.00023038,3]
[349832775,1737455446551,-500.0,0.00023059,3]
[349832777,1737455446560,-509.37483396,0.00023059,3]
[349832778,1737455446570,-620.24,0.00023059,3]
[349832781,1737455446579,-500.0,0.00023059,3]
[349832783,1737455446589,-500.0,0.00023059,3]
[349832785,1737455446598,-500.0,0.00023059,3]
[349832787,1737455446608,-500.0,0.00023059,3]
[349832789,1737455446618,-500.0,0.00023059,3]
[349832791,1737455446628,-161.48860191,0.00023059,3]
[349832793,1737455446637,-500.0,0.00023059,3]
[349832795,1737455446648,-500.0,0.00023059,3]
[349832797,1737455446657,-500.0,0.00023059,3]
[349832799,1737455446666,-500.0,0.00023059,3]
[349832801,1737455446676,-500.0,0.00023059,3]
[349832803,1737455446686,-584.0656433,0.00023059,3]
[349832805,1737455446696,-506.03510491,0.00023059,3]
[349832807,1737455446706,-500.0,0.00023059,3]
[349832809,1737455446715,-500.0,0.00023059,3]
[349832811,1737455446724,-500.0,0.00023059,3]
[349832812,1737455446734,-500.0,0.00023059,3]
[349832815,1737455446743,-500.0,0.00023059,3]
[349832817,1737455446753,-500.0,0.00023059,3]
[349832819,1737455446763,-500.0,0.00023059,3]
[349832821,1737455446773,-500.0,0.00023059,3]
[349832823,1737455446782,-500.0,0.00023059,3]
[349832825,1737455446791,-561.22604839,0.00023059,3]
[349832827,1737455446801,-500.0,0.00023059,3]
[349832828,1737455446811,-500.0,0.00023059,3]
[349832830,1737455446820,-500.0,0.00023059,3]
[349832832,1737455446829,-500.0,0.00023059,3]
[349832834,1737455446839,-500.0,0.00023059,3]
[349832836,1737455446848,-592.81409506,0.00023059,3]
[349832838,1737455446858,-500.0,0.00023059,2]
[349832840,1737455446867,-500.0,0.00023059,3]
[349832842,1737455446876,-500.0,0.00023059,3]
[349832845,1737455446886,-500.0,0.00023059,3]
[349832847,1737455446898,-500.0,0.00023059,3]
[349832848,1737455446907,-500.0,0.00023059,3]
[349832850,1737455446917,-500.0,0.00023059,3]
[349832852,1737455446926,-500.0,0.00023059,3]
[349832854,1737455446935,-500.0,0.00023059,3]
[349832856,1737455446945,-500.0,0.00023059,3]
[349832858,1737455446955,-500.0,0.00023059,3]
[349832860,1737455446964,-500.0,0.00023059,3]
[349832862,1737455446974,-500.0,0.00023059,3]
[349832864,1737455446984,-500.0,0.00023059,3]
[349832866,1737455446994,-1531.42,0.00023059,3]
[349832868,1737455447003,-517.26666289,0.00023059,3]
[349832870,1737455447013,-839.96,0.00023059,3]
[349832872,1737455447022,-575.59,0.00023059,3]
[349832874,1737455447032,-500.0,0.00023059,3]
[349832876,1737455447041,-500.0,0.00023059,3]
[349832878,1737455447050,-500.0,0.00023059,3]
[349832880,1737455447060,-500.0,0.00023059,3]
[349832882,1737455447070,-535.55,0.00023059,3]
[349832884,1737455447080,-500.0,0.00023059,3]
[349832886,1737455447089,-5091.06,0.00023059,3]
[349832888,1737455447099,-500.0,0.00023059,3]
[349832890,1737455447109,-500.0,0.00023059,3]
[349832893,1737455447118,-500.0,0.00023059,3]
[349832895,1737455447128,-8517.2,0.00023059,3]
[349832897,1737455447137,-500.0,0.00023059,2]
[349832898,1737455447148,-500.0,0.00023059,3]
[349832900,1737455447158,-500.0,0.00023059,3]
[349832903,1737455447171,-500.0,0.00023059,3]
[349832905,1737455447181,-518.5,0.00023059,3]
[349832907,1737455447190,-500.0,0.00023059,3]
[349832909,1737455447200,-500.0,0.00023059,3]
[349832911,1737455447209,-500.0,0.00023059,3]
[349832913,1737455447218,-500.0,0.00023059,3]
[349832915,1737455447228,-515.8,0.00023059,3]
[349832917,1737455447237,-500.0,0.00023059,3]
[349832919,1737455447255,-500.0,0.00023059,3]
[349832921,1737455447267,-500.0,0.00023059,3]
[349832923,1737455447277,-500.0,0.00023059,3]
[349832925,1737455447287,-500.0,0.00023059,3]
[349832927,1737455447297,-500.0,0.00023059,3]
[349832929,1737455447307,-1054.34,0.00023059,3]
[349832931,1737455447318,-500.0,0.00023059,3]
[349832933,1737455447330,-500.0,0.00023059,3]
[349832935,1737455447339,-500.0,0.00023059,3]
[349832937,1737455447349,-500.0,0.00023059,3]
[349832939,1737455447359,-14049.1,0.00023059,3]
[349832941,1737455447369,-598.29,0.00023059,3]
[349832943,1737455447378,-500.0,0.0002306,3]
[349832945,1737455447387,-500.0,0.0002306,3]
[349832947,1737455447399,-649.7,0.0002306,3]
[349832949,1737455447409,-695.32,0.0002306,3]
[349832951,1737455447419,-556.89565944,0.0002306,3]
[349832953,1737455447432,-500.0,0.0002306,3]
[349832955,1737455447442,-500.0,0.0002306,3]
[349832957,1737455447452,-500.0,0.0002306,3]
[349832959,1737455447464,-500.0,0.0002306,3]
[349832961,1737455447474,-500.0,0.0002306,3]
[349832964,1737455447483,-603.6,0.0002306,3]
[349832966,1737455447492,-500.0,0.00023102,3]
[349832967,1737455447503,-500.0,0.00023102,3]
[349832969,1737455447513,-649.40402694,0.00023107,3]
[349832971,1737455447522,-1259.29,0.00023123,3]
[349832974,1737455447533,-1024.96,0.00023123,3]
[349832976,1737455447543,-658.46,0.00023123,3]
[349832977,1737455447552,-500.0,0.00023123,3]
[349832979,1737455447562,-500.0,0.00023123,3]
[349832982,1737455447572,-924.93,0.00023123,3]
[349832984,1737455447583,-500.0,0.00023123,3]
[349832986,1737455447592,-1119.98,0.00023123,3]
[349832987,1737455447601,-2000.69,0.00023123,3]
[349832990,1737455447611,-520.14,0.00023123,3]
[349832992,1737455447621,-818.08,0.00023123,3]
[349832993,1737455447630,-500.0,0.00023134,3]
[349832995,1737455447640,-458.06555394,0.00023134,3]
[349832998,1737455447655,-500.0,0.00023134,3]
[349832999,1737455447664,-1403.8,0.00023134,3]
[349833001,1737455447674,-1254.17,0.00023134,3]
[349833003,1737455447683,-500.0,0.00023134,3]
[349833005,1737455447693,-500.0,0.00023134,3]
[349833007,1737455447703,-500.0,0.00023134,3]
[349833010,1737455447713,-202.07310658,0.00023148,2]
[349833012,1737455447723,-169.39946869,0.00023151,2]
[349833023,1737455447827,-159.571251,0.00023152,2]
[349833025,1737455447837,-1233.84,0.00023168,3]
[349833028,1737455447847,-539.4,0.00023168,3]
[349833030,1737455447857,-500.0,0.00023168,3]
[349833031,1737455447866,-649.40402694,0.00023176,3]
[349833034,1737455447876,-500.0,0.00023196,3]
[349833035,1737455447886,-620.24,0.00023196,3]
[349833037,1737455447898,-500.0,0.00023196,3]
[349833039,1737455447907,-500.0,0.00023196,3]
[349833041,1737455447917,-391.53341822,0.00023196,3]
[349833043,1737455447926,-500.0,0.00023196,3]
[349833045,1737455447936,-500.0,0.00023196,3]
[349833047,1737455447946,-500.0,0.00023196,3]
[349833049,1737455447956,-500.0,0.00023196,3]
[349833051,1737455447966,-500.0,0.00023196,3]
[349833053,1737455447976,-500.0,0.00023196,3]
[349833055,1737455447986,-500.0,0.00023196,3]
[349833057,1737455447996,-500.0,0.00023196,3]
[349833059,1737455448006,-500.0,0.00023196,3]
[349833061,1737455448015,-500.0,0.00023196,3]
[349833063,1737455448026,-500.0,0.00023196,3]
[349833065,1737455448036,-500.0,0.00023196,3]
[349833067,1737455448046,-500.0,0.00023196,3]
[349833069,1737455448058,-500.0,0.00023196,3]
[349833072,1737455448070,-500.0,0.00023196,3]
[349833073,1737455448080,-500.0,0.00023196,3]
[349833076,1737455448091,-500.0,0.00023196,3]
[349833078,1737455448101,-500.0,0.00023196,3]
[349833080,1737455448110,-500.0,0.00023196,2]
[349833082,1737455448121,-500.0,0.00023196,3]
[349833084,1737455448131,-500.0,0.00023196,3]
[349833086,1737455448140,-500.0,0.00023196,3]
[349833088,1737455448151,-500.0,0.00023196,3]
[349833089,1737455448162,-500.0,0.00023196,3]
[349833092,1737455448173,-500.0,0.00023196,3]
[349833093,1737455448183,-500.0,0.00023196,3]
[349833096,1737455448194,-500.0,0.00023196,3]
[349833098,1737455448204,-500.0,0.00023196,3]
[349833100,1737455448214,-500.0,0.00023196,3]
[349833101,1737455448224,-1531.42,0.00023196,3]
[349833103,1737455448233,-839.96,0.00023196,3]
[349833105,1737455448244,-575.59,0.00023196,3]
[349833107,1737455448254,-500.0,0.00023196,3]
[349833109,1737455448264,-500.0,0.00023196,3]
[349833111,1737455448274,-500.0,0.00023196,3]
[349833113,1737455448284,-500.0,0.00023196,3]
[349833115,1737455448294,-535.55,0.00023196,3]
[349833117,1737455448303,-500.0,0.00023196,3]
[349833119,1737455448313,-5091.06,0.00023196,3]
[349833121,1737455448322,-500.0,0.00023196,3]
[349833123,1737455448332,-8517.2,0.00023196,3]
[349833125,1737455448343,-500.0,0.00023196,3]
[349833127,1737455448353,-500.0,0.00023196,3]
[349833129,1737455448362,-500.0,0.00023196,3]
[349833131,1737455448372,-518.5,0.00023196,3]
[349833133,1737455448383,-500.0,0.00023196,3]
[349833135,1737455448395,-500.0,0.00023196,3]
[349833137,1737455448405,-500.0,0.00023196,3]
[349833139,1737455448415,-500.0,0.00023196,3]
[349833141,1737455448426,-515.8,0.00023196,3]
[349833143,1737455448439,-500.0,0.00023196,3]
[349833145,1737455448449,-500.0,0.00023196,3]
[349833147,1737455448459,-500.0,0.00023196,3]
[349833149,1737455448470,-500.0,0.00023196,3]
[349833151,1737455448480,-500.0,0.00023196,3]
[349833153,1737455448490,-500.0,0.00023196,3]
[349833155,1737455448500,-1054.34,0.00023196,3]
[349833157,1737455448512,-167.58,0.00023196,3]
[349833159,1737455448521,-500.0,0.00023196,3]
[349833161,1737455448530,-500.0,0.00023196,3]
[349833163,1737455448539,-500.0,0.00023196,3]
[349833165,1737455448549,-14049.1,0.00023196,3]
[349833167,1737455448559,-337.65653111,0.00023196,3]
[349835042,1737456106617,210.387113,0.00013973,2]
[349835049,1737456392211,1173.00882613,0.0002,2]
[349835053,1737456557465,365.75391852,0.000189,2]
[349835100,1737456632236,-210.387113,0.00020447,2]
[349835102,1737456632246,-300.0,0.00021534,2]
[349835104,1737456632255,-55253.65343807,0.00021535,5]
[349835106,1737456632265,-256.85083417,0.000218,2]
[349835108,1737456632274,-259.14,0.000219,2]
[349835110,1737456632284,-214.9026291,0.000219,2]
[349835112,1737456632293,-353.6953314,0.000219,2]
[349835114,1737456632302,-153.9204537,0.000219,2]
[349835116,1737456632311,-353.8262533,0.000219,2]
[349835118,1737456632321,-353.8262533,0.000219,2]
[349835120,1737456632332,-353.8262533,0.000219,2]
[349835122,1737456632341,-647.59972737,0.000219,3]
[349835124,1737456632350,-153.89,0.00021917,2]
[349835126,1737456632360,-500.0,0.00021917,3]
[349835128,1737456632369,-500.0,0.00021917,3]
[349835130,1737456632378,-500.0,0.00021917,3]
[349835132,1737456632387,-506.94147771,0.00021917,3]
[349835134,1737456632396,-500.0,0.00021917,3]
[349835136,1737456632406,-500.0,0.00021917,2]
[349835138,1737456632415,-500.0,0.00021917,3]
[349835140,1737456632424,-500.0,0.00021917,3]
[349835142,1737456632433,-1101.1,0.00021917,3]
[349835144,1737456632442,-500.0,0.00021917,3]
[349835146,1737456632451,-500.0,0.00021917,3]
[349835148,1737456632461,-500.0,0.00021917,3]
[349835150,1737456632470,-500.0,0.00021917,3]
[349835152,1737456632479,-500.0,0.00021917,3]
[349835154,1737456632489,-500.0,0.00021917,3]
[349835156,1737456632497,-500.0,0.00021917,3]
[349835158,1737456632506,-500.0,0.00021917,3]
[349835160,1737456632515,-500.0,0.00021917,3]
[349835162,1737456632524,-500.0,0.00021917,3]
[349835164,1737456632534,-500.0,0.00021917,3]
[349835166,1737456632543,-1397.24,0.00021917,3]
[349835168,1737456632553,-500.0,0.00021917,3]
[349835170,1737456632562,-1050.38,0.00021917,3]
[349835172,1737456632571,-915.59,0.00021917,3]
[349835174,1737456632582,-500.0,0.00021917,3]
[349835176,1737456632592,-593.72,0.00021917,3]
[349835178,1737456632601,-500.0,0.00021917,3]
[349835180,1737456632610,-1107.64,0.00021917,3]
[349835182,1737456632619,-500.0,0.00021917,3]
[349835184,1737456632628,-500.0,0.00021917,3]
[349835186,1737456632637,-500.0,0.00021917,3]
[349835188,1737456632647,-500.0,0.00021917,3]
[349835190,1737456632656,-500.0,0.00021917,3]
[349835191,1737456632665,-500.0,0.00021917,3]
[349835193,1737456632675,-500.0,0.00021917,3]
[349835196,1737456632685,-500.0,0.00021917,3]
[349835198,1737456632694,-500.0,0.00021917,3]
[349835199,1737456632705,-500.0,0.00021917,3]
[349835201,1737456632715,-882.23,0.00021917,3]
[349835203,1737456632724,-500.0,0.00021917,3]
[349835205,1737456632735,-500.0,0.00021917,3]
[349835207,1737456632744,-500.0,0.00021917,3]
[349835209,1737456632754,-602.85,0.00021917,3]
[349835211,1737456632763,-500.0,0.00021917,3]
[349835213,1737456632772,-500.0,0.00021917,3]
[349835215,1737456632782,-1011.65,0.00021917,3]
[349835217,1737456632792,-647.59972732,0.00022003,3]
[349835219,1737456632805,-500.0,0.00022054,3]
[349835221,1737456632814,-500.0,0.00022054,2]
[349835223,1737456632823,-1101.1,0.00022054,3]
[349835225,1737456632834,-500.0,0.00022054,3]
[349835227,1737456632843,-500.0,0.00022054,3]
[349835229,1737456632852,-500.0,0.00022054,3]
[349835231,1737456632861,-1397.24,0.00022054,3]
[349835233,1737456632872,-1050.38,0.00022054,3]
[349835235,1737456632883,-915.59,0.00022054,3]
[349835237,1737456632894,-593.72,0.00022054,3]
[349835239,1737456632903,-500.0,0.00022054,3]
[349835241,1737456632912,-1107.64,0.00022054,3]
[349835243,1737456632922,-500.0,0.00022054,3]
[349835245,1737456632931,-500.0,0.00022054,3]
[349835247,1737456632940,-500.0,0.00022054,3]
[349835249,1737456632949,-500.0,0.00022054,3]
[349835251,1737456632959,-500.0,0.00022054,3]
[349835253,1737456632968,-642.54094708,0.00022054,3]
[349835255,1737456632977,-500.0,0.00022054,3]
[349835257,1737456632987,-882.23,0.00022054,3]
[349835259,1737456632997,-500.0,0.00022054,3]
[349835261,1737456633006,-602.85,0.00022054,3]
[349835264,1737456633016,-500.0,0.00022054,3]
[349835266,1737456633026,-500.0,0.00022054,3]
[349835268,1737456633037,-1011.65,0.00022054,3]
[349835269,1737456633047,-300.0,0.000221,10]
[349835271,1737456633057,-647.59972732,0.00022107,3]
[349835273,1737456633067,-256.85083416,0.00022165,2]
[349835275,1737456633076,-508.66,0.00022191,3]
[349835277,1737456633088,-1101.1,0.00022191,3]
[349835279,1737456633098,-500.0,0.00022191,3]
[349835281,1737456633107,-500.0,0.00022191,3]
[349835283,1737456633117,-1397.24,0.00022191,3]
[349835285,1737456633127,-1050.38,0.00022191,3]
[349835287,1737456633136,-915.59,0.00022191,3]
[349835289,1737456633145,-593.72,0.00022191,3]